Cogmind - Beta 15 @@@ ROGUE MODE // 2025.07.13 @ 13:39:32 Player: Rockstar Result: Destroyed by G-50 Soldier with Heavy Laser Performance ------------- Evolutions (5) 2500 Regions Visited (6) 1200 Robots Destroyed (46) 230 Value Destroyed (1979) 1979 Prototype IDs (0) 0 Alien Tech Used (0) 0 Bonus (0) 0 TOTAL SCORE: 5909 Bonus ------- None Cogmind --------- Core Integrity 0/1000 Matter 280/300 Energy 150/150 System Corruption 15% Temperature Cool (27) Movement Flying (40) Location -5/Factory Parts ------- > --- POWER (2) -------- Micro Fission Core > --- PROPULSION (4) --- Nuclear Pulse Thruster > --- UTILITY (8) ------ Improved Signal Interpreter Advanced Targeting Computer > --- WEAPON (3) ------- (None) > --- INVENTORY (5) ---- Light Ion Engine Light Angular Momentum Engine Armored Treads Peak State ------------ > --- POWER ------------ Reinforced Fission Core Light Antimatter Reactor > --- PROPULSION ------- Armored Treads Armored Treads Improved Medium Treads Improved Medium Treads > --- UTILITY ---------- Advanced Heat Sink Improved Cooling System Improved Coolant Injector Medium Storage Unit Improved Trap Scanner Improved Sensor Array Improved Signal Interpreter Advanced Targeting Computer > --- WEAPON ----------- Phase Cannon Phase Cannon Phase Cannon > --- INVENTORY -------- Light Ion Engine Improved Ion Engine Armored Treads Medium Treads Improved Light Armor Plating Phase Cannon [Rating: 75] Favorites ----------- Power Ion Engine Engine Ion Engine Power Core Reinforced Fission Core Reactor Light Antimatter Reactor Propulsion Light Treads Treads Light Treads Leg Carbon-fiber Leg Wheel Subdweller Monowheel Flight Unit Nuclear Pulse Thruster Utility Targeting Computer Device Improved Sensor Array Storage Medium Storage Unit Processor Targeting Computer Hackware System Shield Protection Improved Light Armor Plating Weapon Medium Laser Energy Gun Medium Laser Energy Cannon Phase Cannon Ballistic Gun Battle Rifle Launcher Grenade Launcher Special Weapon Mining Laser Slashing Weapon Great Axe Build | -11 -10 -10 -8 -7 -6 -5 ------- Run | Yrd Mat Sub Mat Fac Fac Fac Slots Evolved 10 | . . . 4 2 2 2 Power 1 | . . . . 1 . . Propulsion 2 | . . . . . 2 . Utility 6 | . . . 4 . . 2 Weapon 1 | . . . . 1 . . Parts Attached 80 | 6 4 6 7 14 5 38 Power 13 | 1 1 1 . 3 1 6 Engine 8 | 1 1 1 . 2 1 2 Core 4 | . . . . 1 . 3 Reactor 1 | . . . . . . 1 Propulsion 23 | 2 . 2 . 5 1 13 Treads 13 | 2 . 1 . 5 1 4 Leg 7 | . . . . . . 7 Wheel 2 | . . 1 . . . 1 Hover . | . . . . . . . Flight 1 | . . . . . . 1 Utility 21 | 1 3 . 5 4 . 8 Device 13 | . 2 . 3 2 . 6 Storage 2 | 1 . . 1 . . . Processor 3 | . 1 . . 1 . 1 Hackware 2 | . . . 1 . . 1 Protection 1 | . . . . 1 . . Artifact . | . . . . . . . Weapon 23 | 2 . 3 2 2 3 11 Energy Gun 4 | 1 . . . 1 . 2 Energy Cannon 9 | . . . . . 1 8 Ballistic Gun 5 | 1 . . 2 1 . 1 Ballistic Cannon . | . . . . . . . Launcher 1 | . . 1 . . . . Special Weapon 2 | . . 2 . . . . Impact Weapon . | . . . . . . . Slashing Weapon 2 | . . . . . 2 . Piercing Weapon . | . . . . . . . Special Melee Weapon . | . . . . . . . Unidentified Prototypes . | . . . . . . . Corrupted Parts 1 | . . . . . . 1 System Corruption 3 | . . . . . . 3 Parts Lost 52 | . . 2 1 8 1 40 Power 10 | . . 1 . 2 1 6 Propulsion 18 | . . 1 . 2 . 15 Utility 10 | . . . . 1 . 9 Weapon 14 | . . . 1 3 . 10 Highest Loss Streak 13 | . . 1 1 5 1 13 To Critical Strikes . | . . . . . . . Average Backups 7 | . 5 7 8 8 6 6 Power 1 | . 1 2 2 2 1 1 Propulsion 1 | . . . 1 2 1 2 Utility 1 | . . 1 . 2 3 1 Weapon 2 | . 2 4 3 1 . . Tool/Special . | . . . . . . . Unused Backups 6 | . . 1 1 1 . 3 Power . | . . . . . . . Propulsion 1 | . . . 1 . . . Utility 3 | . . . . 1 . 2 Weapon 2 | . . 1 . . . 1 Tool/Special . | . . . . . . . Average Slot Usage (%) 93 | . 97 97 87 98 94 86 Engine 11 | . 14 13 9 14 11 5 Core 1 | . . . . . . 3 Treads 18 | . 28 21 18 15 25 13 Leg 1 | . . . . . . 6 Device 14 | . 9 . 19 16 13 24 Storage 8 | . 14 14 9 7 6 4 Processor 10 | . 2 14 9 12 13 9 Hackware 1 | . . . 5 1 . . Protection 2 | . . . . 5 5 1 Energy Gun 5 | . 14 3 3 8 . 1 Energy Cannon 2 | . . . . . 5 9 Ballistic Gun 8 | . 14 6 13 13 6 1 Launcher 2 | . . 13 . . . . Peak Build Rating 75 | 6 9 10 21 34 46 75 Average Rating 29 | 4 7 8 17 28 41 60 On Entrance 17 | . 6 8 10 19 30 46 Naked Turns . | . . . . . . . Heaviest Build 72 | 14 15 17 25 38 44 72 Greatest Support 120 | 40 40 40 40 48 88 120 Greatest Overweight (x) 5 | 1 . 5 . . . 4 Average Overweight (x) . | . . . . . . . Largest Inventory Capacity 10 | 8 8 8 10 10 10 10 Average Capacity 9 | 7 8 8 8 10 10 9 Most Carried 10 | 2 8 8 10 10 10 10 Average Carried 7 | . 5 7 8 8 6 6 Final Capacity 10 | 8 8 8 10 10 10 10 Final Carried 10 | 2 8 8 9 10 9 10 Class Distribution -------------------- 52% | Mutant 19% | Scavenger-Skirmisher 12% | Scavenger-Mutant 9% | Skirmisher 5% | Scavenger-Gunner Dominant Class ---------------- Mutant | -10/Materials Mutant | -10/Subcaves Mutant | -8/Materials Scavenger-Skirmisher | -7/Factory Mutant | -6/Factory Skirmisher | -5/Factory Resources | -11 -10 -10 -8 -7 -6 -5 ----------- Run | Yrd Mat Sub Mat Fac Fac Fac Matter Collected 1448 | 249 96 165 162 164 . 612 Remotely . | . . . . . . . Salvage Created 2181 | . 154 59 197 218 . 1553 Parts 105 | . 4 3 15 8 . 75 Haulers Intercepted 1 | . . . 1 . . . Recyclers Shooed 2 | . . . . . . 2 Parts Field Recycled . | . . . . . . . Retrieved Matter . | . . . . . . . Parts Self-Destructed 5 | . . 5 . . . . Prevented . | . . . . . . . Kills | -11 -10 -10 -8 -7 -6 -5 ------- Run | Yrd Mat Sub Mat Fac Fac Fac Combat Hostiles Destroyed 39 | . 4 3 5 4 . 23 Guns 18 | . 4 1 5 3 . 5 Cannons 16 | . . . . . . 16 AOE 3 | . . 2 . . . 1 Classes Destroyed 12 | . 1 2 2 1 . 6 Worker 3 | . . . . . . 3 Builder 2 | . . . . . . 2 Hauler 1 | . . . 1 . . . Recycler 1 | . . . . . . 1 Swarmer 7 | . . . 3 . . 4 Grunt 15 | . 4 1 . . . 10 Brawler 1 | . . . . . . 1 Duelist 2 | . . . . . . 2 Sentry 6 | . . 1 2 2 . 1 Hunter 2 | . . . . . . 2 Programmer 5 | . . . . 2 . 3 Subdweller 1 | . . 1 . . . . Best Kill Streak 6 | . 2 2 5 2 . 6 Combat Bots Only 5 | . 2 2 4 2 . 5 Max Kills in Single Turn 2 | . 1 1 2 1 . 2 Gunslinging . | . . . . . . . Exploded 1 | . . 1 . . . 1 Melee . | . . . . . . . Uniques/NPCs Destroyed . | . . . . . . . Combat | -11 -10 -10 -8 -7 -6 -5 -------- Run | Yrd Mat Sub Mat Fac Fac Fac Hostile Shots Fired 616 | . 22 18 44 119 . 413 Missed 181 | . 5 8 14 33 . 121 Hits 435 | . 17 10 30 86 . 292 Melee 11 | . . . . . . 11 Projectile 424 | . 17 10 30 86 . 281 Critical Strikes 19 | . . . 3 . . 16 Part Disruptions 2 | . . . . . . 2 Damage Taken 7831 | . 203 285 569 1059 26 5689 Core 1353 | . 53 27 181 74 . 1018 Absorbed by Shields . | . . . . . . . Regen/Repaired (Parts) 236 | . . . . 66 170 . Core Remaining (%) 84 | 100 . 68 67 89 100 . Volleys Fired 142 | . 15 17 19 19 . 72 Largest 3 | . 2 2 2 3 . 3 Hottest 255 | . 70 100 100 125 . 255 Shots Fired 309 | . 30 25 33 55 . 166 Gun 166 | . 30 9 28 54 . 45 Cannon 121 | . . . . . . 121 Launcher 10 | . . 10 . . . . Special 12 | . . 6 5 1 . . Kinetic 101 | . 15 6 23 28 . 29 Thermal 171 | . 15 9 10 27 . 110 Explosive 10 | . . 10 . . . . Electromagnetic 27 | . . . . . . 27 Robot Hit Streak 25 | . 7 9 6 25 . 10 Robot Miss Streak 3 | . 3 1 2 3 . 2 Penetration Max 1 | . . . . . . 1 Secondary Targets . | . . . . . . . Shots Hit Robots 202 | . 20 15 18 39 . 110 Core Hits 100 | . 9 10 9 15 . 57 Critical Kills . | . . . . . . . Critical Parts Destroyed . | . . . . . . . Critical Strikes 8 | . 4 . 1 2 . 1 Burn 7 | . 4 . 1 2 . . Corrupt 1 | . . . . . . 1 Melee Attacks . | . . . . . . . Impact . | . . . . . . . Slashing . | . . . . . . . Piercing . | . . . . . . . Sneak Attacks . | . . . . . . . Combat Hostiles . | . . . . . . . Follow-up Attacks . | . . . . . . . Damage Inflicted 5570 | . 257 367 296 585 . 4065 Guns 1960 | . 257 91 296 583 . 733 Cannons 3168 | . . . . . . 3168 Explosions 392 | . . 276 . . . 116 Melee . | . . . . . . . Ramming 50 | . . . . 2 . 48 Kinetic 1211 | . 118 52 233 307 . 501 Thermal 3479 | . 139 39 63 276 . 2962 Explosive 324 | . . 276 . . . 48 Electromagnetic 506 | . . . . . . 506 Impact . | . . . . . . . Slashing . | . . . . . . . Piercing . | . . . . . . . Highest Corruption 15 | . . . 5 6 . 15 Average Corruption 3 | . . . 5 2 . 6 Corruption Purged . | . . . . . . . Corruption Blocked . | . . . . . . . Effects 22 | . . . . 9 . 13 Message Errors 3 | . . . . 3 . . Matter Fused 5 | . . . . 2 . 3 Heat Flow Errors 2 | . . . . . . 2 Energy Discharges 6 | . . . . 3 . 3 Data Loss (minor) 1 | . . . . . . 1 Data Loss (major) 1 | . . . . 1 . . Misfires 2 | . . . . . . 2 Misdirections 1 | . . . . . . 1 Weapon Failures 1 | . . . . . . 1 Overload Shots . | . . . . . . . Overflow Damage 29 | . . . . . . 29 Projectiles 29 | . . . . . . 29 Explosions . | . . . . . . . Melee . | . . . . . . . Knockbacks . | . . . . . . . Impact . | . . . . . . . Kinetic . | . . . . . . . Secondary . | . . . . . . . Self-Inflicted Damage . | . . . . . . . Shots . | . . . . . . . Rammed 2 | . . . . 2 . . Targets Rammed 9 | . . . . 2 . 7 Kicked 7 | . . . . . . 7 Crushed . | . . . . . . . Highest Temperature 246 | . 162 . 12 13 . 246 Average Temperature 91 | . 78 . 9 5 . 100 Received Heat Transfer 1938 | . 111 51 135 171 . 1470 Siege Activations . | . . . . . . . Martial Activations . | . . . . . . . Shielding Activations . | . . . . . . . Robots Disrupted 1 | . . . . . . 1 Combat Hostiles 1 | . . . . . . 1 Robots Corrupted 1 | . . . . . . 1 Combat Hostiles 1 | . . . . . . 1 Parts Fried 4 | . . . . . . 4 Impact Corruptions . | . . . . . . . Robots Melted 1 | . . . . 1 . . Combat Hostiles 1 | . . . . 1 . . Parts Melted 12 | . 3 . 2 3 . 4 Heat Transferred 4767 | . 703 111 259 888 . 2806 Parts Sabotaged . | . . . . . . . Parts Stolen . | . . . . . . . Parts Stripped . | . . . . . . . Power Chain Reactions 1 | . . . . . . 1 Alert | -11 -10 -10 -8 -7 -6 -5 ------- Run | Yrd Mat Sub Mat Fac Fac Fac Maximum Alert Level 1 | . . . . . . 1 Low Security (%) 84 | 100 100 . 100 100 100 43 Level 1 15 | . . . . . . 56 Level 2 . | . . . . . . . Level 3 . | . . . . . . . Level 4 . | . . . . . . . Level 5 . | . . . . . . . High Security . | . . . . . . . Max Security . | . . . . . . . Peak Influence 326 | . 50 . 98 51 7 326 Initial 13 | . . . . 13 . . Average 59 | . 10 . 26 7 . 184 Influence Increases 1283 | . 90 40 146 143 10 854 Destroy 0b10 Robot/C 760 | . 80 40 100 80 . 460 Destroy 0b10 Robot/NC 35 | . . . 5 . . 30 Destroy Leader 162 | . 10 . 32 40 . 80 Successful Hack 22 | . . . 6 6 10 . Disable Machine 45 | . . . . 15 . 30 Anti-Garrison Action 150 | . . . . . . 150 Destroy Structure 79 | . . . 3 2 . 74 Lose Combat Pursuer 30 | . . . . . . 30 Influence Decreases 1081 | . 90 40 116 173 10 652 Entered New Map 17 | . . . . 17 . . Time Decay 619 | . 90 30 106 131 10 252 Lost Part 445 | . . 10 10 25 . 400 Squads Dispatched 10 | . . . . 2 . 8 Investigation 1 | . . . . . . 1 Extermination 2 | . . . . 1 . 1 Reinforcement 4 | . . . . 1 . 3 Assault 2 | . . . . . . 2 Garrison 1 | . . . . . . 1 Intercept . | . . . . . . . Searches Triggered . | . . . . . . . Construction Impeded 1 | . . . . . . 1 Haulers Reinforced 1 | . . . . . . 1 Active Scanning Responses . | . . . . . . . Cargo Convoy Interrupts . | . . . . . . . Stealth | -11 -10 -10 -8 -7 -6 -5 --------- Run | Yrd Mat Sub Mat Fac Fac Fac Distress Signals 7 | . . . 3 . . 4 Communications Jammed . | . . . . . . . Distress Signals . | . . . . . . . Times Spotted 78 | . 4 4 11 11 . 48 Peak Tracking Total 11 | . 2 1 5 3 . 11 Tactical Retreats 2 | . . . . . . 2 Traps | -11 -10 -10 -8 -7 -6 -5 ------- Run | Yrd Mat Sub Mat Fac Fac Fac Traps Triggered 3 | . . 2 . . 1 . Indirectly . | . . . . . . . Trap Hack Attempts . | . . . . . . . Triggered . | . . . . . . . Disarmed . | . . . . . . . Reprogrammed . | . . . . . . . Reused . | . . . . . . . Traps Extracted . | . . . . . . . Installed . | . . . . . . . Triggered . | . . . . . . . Machines | -11 -10 -10 -8 -7 -6 -5 ---------- Run | Yrd Mat Sub Mat Fac Fac Fac Machines Disabled 4 | . . . . 1 . 3 Max in Single Turn 1 | . . . . 1 . 1 Garrison Access 1 | . . . . . . 1 Machines Repaired . | . . . . . . . Machines Dismantled . | . . . . . . . Machines Sabotaged . | . . . . . . . Overloaded Fab Kills . | . . . . . . . Hacking | -11 -10 -10 -8 -7 -6 -5 --------- Run | Yrd Mat Sub Mat Fac Fac Fac Machines Accessed 11 | . 1 . 2 3 3 2 Terminals 5 | . 1 . 2 1 . 1 Fabricators 3 | . . . . 1 2 . Repair Stations 2 | . . . . 1 1 . Recycling Units . | . . . . . . . Scanalyzers . | . . . . . . . Garrison Access 1 | . . . . . . 1 Total Hacks 23 | . 1 . 3 8 5 6 Successful 10 | . . . 1 5 4 . Failed 13 | . 1 . 2 3 1 6 Catastrophic 4 | . 1 . 1 1 . 1 Database Lockouts . | . . . . . . . Manual 5 | . 1 . 3 1 . . Terminals 6 | . 1 . 3 1 . 1 Fabricators 4 | . . . . 1 3 . Repair Stations 8 | . . . . 6 2 . Recycling Units . | . . . . . . . Scanalyzers . | . . . . . . . Garrison Access 5 | . . . . . . 5 Terminal Hacks . | . . . . . . . Fabricator Hacks 2 | . . . . . 2 . Network Status 1 | . . . . . 1 . Build 1 | . . . . . 1 . Repair Station Hacks 6 | . . . . 4 2 . Scan Component 4 | . . . . 3 1 . Repair 2 | . . . . 1 1 . Recycling Unit Hacks . | . . . . . . . Scanalyzer . | . . . . . . . Garrison Access Hacks . | . . . . . . . Unauthorized Hacks 2 | . . . 1 1 . . Terminals 2 | . . . 1 1 . . Assimilate 2 | . . . 1 1 . . Fabricators . | . . . . . . . Repair Stations . | . . . . . . . Recycling Units . | . . . . . . . Scanalyzers . | . . . . . . . Garrison Access . | . . . . . . . Data Cores Recovered . | . . . . . . . Used . | . . . . . . . Hacking Detections 8 | . 1 . 1 2 2 2 Full Trace Events 1 | . . . . . . 1 Feedback Events . | . . . . . . . Feedback Blocked . | . . . . . . . Robot Schematics Acquired . | . . . . . . . Robots Built . | . . . . . . . Authchips . | . . . . . . . Time 152 | . . . . . 152 . Total Robot Build Rating . | . . . . . . . Part Schematics Acquired . | . . . . . . . Parts Built . | . . . . . . . Authchips . | . . . . . . . Time . | . . . . . . . Total Part Build Rating . | . . . . . . . Parts Repaired 2 | . . . . 1 1 . Time 64 | . . . . 26 38 . Parts Recycled . | . . . . . . . Recycled Matter . | . . . . . . . Retrieved Matter . | . . . . . . . Retrieved Components . | . . . . . . . Parts Scanalyzed . | . . . . . . . Part Schematics Acquired . | . . . . . . . Parts Damaged . | . . . . . . . Bothacking | -11 -10 -10 -8 -7 -6 -5 ------------ Run | Yrd Mat Sub Mat Fac Fac Fac Used RIF Installer . | . . . . . . . Robots Hacked . | . . . . . . . Non-combat . | . . . . . . . Combat . | . . . . . . . Robot Hacks Applied . | . . . . . . . Relay Couplers Released 1 | . . . . . . 1 Machine Destruction 1 | . . . . . . 1 Fabnet Peak Effective % . | . . . . . . . Robots Rewired . | . . . . . . . Allies Hacked 1 | . . . . 1 . . Hacks Repelled . | . . . . . . . Allies | -11 -10 -10 -8 -7 -6 -5 -------- Run | Yrd Mat Sub Mat Fac Fac Fac Total Allies 2 | . . . 1 1 . . Largest Group 1 | . . . 1 1 . . Highest-Rated Group 10 | . . . 10 10 . . Highest-Rated Ally 10 | . . . 10 10 . . Total Orders 1 | . . . 1 . . . STAY 1 | . . . 1 . . . Ally Attacks . | . . . . . . . Total Damage . | . . . . . . . Kills . | . . . . . . . Allies Corrupted . | . . . . . . . Allies Melted . | . . . . . . . Intel | -11 -10 -10 -8 -7 -6 -5 ------- Run | Yrd Mat Sub Mat Fac Fac Fac Active Infowar (turns) 1908 | . 163 . 210 707 230 598 Sensors 1288 | . . . . 527 230 531 Traps 597 | . . . . . . 597 Seismic 553 | . 163 . 210 180 . . Robot Analysis Total . | . . . . . . . Derelict Logs Recovered 1 | . . 1 . . . . Drone Launches . | . . . . . . . Drone Recoveries . | . . . . . . . Exploration | -11 -10 -10 -8 -7 -6 -5 ------------- Run | Yrd Mat Sub Mat Fac Fac Fac Turns Passed 2854 | 63 377 449 343 715 230 677 Spaces Moved 1321 | 36 201 258 153 338 103 232 Core 21 | 5 . 8 . . . 8 Treads 1100 | 31 201 155 153 338 103 119 Legs 88 | . . . . . . 88 Wheels 95 | . . 95 . . . . Hover . | . . . . . . . Flight 17 | . . . . . . 17 Fastest Speed 40 | 50 160 110 160 160 167 40 Average Speed 157 | 148 160 145 160 167 167 148 Slowest Speed 410 | 160 160 300 160 170 167 410 Overloaded Moves . | . . . . . . . Propulsion Burnouts . | . . . . . . . Robots Hopped 6 | . . . . . . 6 Potential Cave-ins 3 | . . . 3 . . . Cave-ins Triggered 1 | . . . 1 . . . Exploration Rate (%) 13 | 4 32 22 15 9 3 9 Regions Visited 6 Branch Regions 1 Pre-discovered Areas . | . . . . . . . Known Exits Taken 3 | . . . 1 1 1 . Unknown Exits Taken 3 | 1 1 1 . . . . Scrap Searched . | . . . . . . . Spaces Dug 7 | . . 2 5 . . . Terrain Destroyed 61 | . . 24 5 . . 32 Melee . | . . . . . . . Projectile 19 | . . . 5 . . 14 AOE 42 | . . 24 . . . 18 Terrain Rammed . | . . . . . . . Walls Destroyed . | . . . . . . . Machines Disabled . | . . . . . . . Actions | -11 -10 -10 -8 -7 -6 -5 --------- Run | Yrd Mat Sub Mat Fac Fac Fac Total 1787 | 43 227 290 209 446 162 410 Wait 129 | . . 5 12 53 43 16 Move 1307 | 35 200 257 152 337 102 224 Hop 2 | . . . . . . 2 Pick Up 44 | 2 5 1 8 7 6 15 Fast Attach 42 | 6 2 3 4 6 1 20 Attach 36 | . 1 1 2 5 7 20 Detach 14 | . 2 1 . 3 1 7 Swap 23 | . 1 3 5 6 . 8 Drop 32 | . 1 2 7 8 2 12 Fire 142 | . 15 17 19 19 . 72 Melee . | . . . . . . . Ram . | . . . . . . . Kick 7 | . . . . . . 7 Crush 2 | . . . . 2 . . Escape Stasis . | . . . . . . . Rewire 7 | . . . . . . 7 Trap . | . . . . . . . Miscellaneous . | . . . . . . . Route ------- -11/Scrapyard -10/Materials (discovered 2 exits: [*Mat] / [*Sub]) -10/Subcaves -8/Materials (discovered 2 exits: *Fac / *Sto) -7/Factory -6/Factory -5/Factory History --------- Turn | Location | Event 29 | -11/Scrapyard | Discovered new exit (range 16) 64 | -11/Scrapyard | Entered Materials 316 | -10/Materials | Build established: Mutant 401 | -10/Materials | Discovered new exit (range 6) 405 | -10/Materials | Discovered new exit (range 6) 441 | -10/Materials | Entered Subcaves 570 | -10/Subcaves | Learned 4 Materials zone layouts 693 | -10/Subcaves | A swath of the cavern ceiling suddenly collapsed 722 | -10/Subcaves | Discovered new exit (range 3) 890 | -10/Subcaves | Entered Materials 890 | -8/Materials | Evolved 4 slots: Utility x4 891 | -8/Materials | Identified exit to Factory 891 | -8/Materials | Identified exit to Storage 1202 | -8/Materials | Crushed by falling debris 1233 | -8/Materials | Entered Factory 1233 | -7/Factory | Evolved 2 slots: Power x1, Weapon x1 1395 | -7/Factory | Lost 5 parts (1p2n1u1w) 1479 | -7/Factory | Repaired Med. Laser 1783 | -7/Factory | Build established: Scavenger-Skirmisher 1942 | -7/Factory | Discovered new exit (range 5) 1947 | -7/Factory | Identified exit to Factory 1948 | -7/Factory | Entered another Factory area 1948 | -6/Factory | Evolved 2 slots: Propulsion x2 1979 | -6/Factory | Lost 3 parts (1p2w) 2013 | -6/Factory | Repaired Imp. Light Armor Plating 2100 | -6/Factory | Discovered new exit (range 6) 2107 | -6/Factory | Identified exit to Factory 2178 | -6/Factory | Entered another Factory area 2178 | -5/Factory | Evolved 2 slots: Utility x2 2289 | -5/Factory | Garrison activated, responded to threat 2548 | -5/Factory | Core integrity fell below 50% 2590 | -5/Factory | Lost 13 parts (3p7n3w) 2770 | -5/Factory | System corruption reached 10% 2807 | -5/Factory | Lost 12 parts (1p4n4u3w) 2830 | -5/Factory | Core integrity fell below 20% 2855 | -5/Factory | Destroyed by G-50 Soldier with Heavy Laser Last Messages --------------- Penetrated by Slug. Carbon-fiber Leg destroyed. Slug penetrates Wall. Adv. Heat Sink destroyed. Penetrated by Slug. Carbon-fiber Leg destroyed. U-05 Engineer builds a Door. Slug penetrates Wall. Critical hit (Burn: +37). Penetrated by Slug. Med. Storage Unit destroyed. System corrupted: Heat flow error (+276). Penetrated by Slug. Carbon-fiber Leg destroyed. Acquired Nuclear Pulse Thruster. Acquired Mic. Fission Core. Slug penetrates Wall. Slug penetrates Nuclear Reactor. [Achievement: Cya!] Critical hit (Burn: +37). Map ----- +----------------------------------------------------+ | ?????????????????????????????????????????????????? | | ?????????????????????????????????????????????????? | | ?????????????????????????????????????????????????? | | ?????????????????????????????????????????????????? | | ??????????????##??? ????????????????????????????? | | ???????????? ### "???????????????????????????? | | ?????????? "???????????????????????????? | | ?????????? ""? ????????????????????? | | ??????????? ""? ??????????????????? | | ???????????# ? #????????????????? | | ???????????# """ #????????????????? | | ???????????# """ #????????????????? | | ???????????# """R #????????????????? | | ???????????# """ ! ####?????????????? | | ???????????# ?????????????? | | ???????????+ ?????????????? | | ???????????# ?????????????? | | ???????????# ||| ?????????????? | | ???????????# ||| ???????????????? | | ???????##### ||| #????????????????????? | | ???????+ u########?????????????? | | ???????#######+#### # ??????????????? | | ????????# # u #! """ ??????????????? | | ????????# # u g # """ ??????????????? | | ????????# # Yg b + """ ??????????????? | | ????????# u ghggg@ # ??????????? | | ????????############p###### ##/#####+#???????????? | | ???????????????# #??# #?????????????????? | | ???????????????# """ #??#### #?????????????????? | | ???????????????# """ #?????# #?????????????????? | | ???????????????# """ #???### ###?????? ???????? | | ???????????????# #???# ## #?????? | | ???????????????# ##### #?????? | | ???????????????# #" ####???????? | | ???????????????# ## ## #??????????? | | ???????????????########## ## ### ##??????????? | | ?????????????????????# ####/###???#???????????? | | ?????????????????????# !#??? #???????????????? | | ?????????????????????# [%#### #???????????????? | | ?????????????????????# + #???????????????? | | ?????????????????????#######%# #???????????????? | | ???????????????????????????# # ? #???????????????? | | ???????????????????????????# # ??????????????????? | | ???????????????????????????# # ??????????????????? | | ???????????????????????????#%#???????????????????? | | ???????????????????????????#[#???????????????????? | | ???????????????????????????#%#???????????????????? | | ???????????????????????????#%#???????????????????? | | ???????????????????????????# ##??????????????????? | | ??????????????????????????## "#??????????????????? | +----------------------------------------------------+ Best States ------------- Heat Dissipation 86 Coolant Potential 80 Energy Generation 35 Energy Capacity 500 Matter Stores 300 Matter Capacity 300 Sight Range 16 Robot Scan Range 15 Terrain Scan Density 10 Armor Coverage 150 Evasion (%) 62 Targeting Accuracy 8 Recoil Reduction 4 Particle Charging 20 Offensive Hacking 10 Defensive Hacking 10 Item Schematics ----------------- None Robot Schematics ------------------ None Fabricated ------------ Nothing Repaired ---------- Med. Laser | 5% | -7/Factory Imp. Light Armor Plating | 5% | -6/Factory Alien Tech Used ----------------- None Achievements -------------- Cya! Challenges ------------ None Game ------ Seed CloakInertialBank Manual? 0 Play Time 00:51:40 Cumulative 67.1 hours Start 2025.07.13 @ 10:12:50 End 2025.07.13 @ 13:39:32 Sessions 3 Manual Loads 0 Difficulty Rogue Special Mode None Game No. 55 Rogue 52 Adventurer 1 Explorer 2 Win Type - Total 0 Types 0/0/0/0/0/0/0/0/0/0 Lore% 22 Gallery% 40 Achievement% 31 Wizard Run 0 Options --------- Layout 0 ASCII 0 Keyboard 0 Movement Mouse Keybinds 0 Fullscreen 2 Font 24/Smallcaps Map View 76x50 Zoom Use 0% Tactical HUD 0 Map Filters NONE Filters NONE Steam 1 RUN: f3a62ebd-aec1-47aa-a789-0c345a8d0ee2